[Event "28th Bosnjaci Open 2024"]
[Site "Bosnjaci"]
[Date "2024.01.04"]
[Round "3.16"]
[White "Cupic, Lovro"]
[Black "Tomas, Ante"]
[Result "1/2-1/2"]
[ECO "B12"]
[WhiteElo "2265"]
[BlackElo "2014"]
[Annotator "RC"]
[PlyCount "101"]
[EventDate "2024.01.02"]
[EventType "swiss"]
[EventCountry "CRO"]
[SourceTitle "playchess.com"]
[Source "ChessBase"]
[SourceQuality "1"]
[TimeControl "5400+30"]

1. e4 {[%emt 0:00:02]} c6 {[%emt 0:00:11]} 2. d4 {[%emt 0:02:07]} d5 {[%emt 0:00:01]} 3. e5 {[%emt 0:00:07]} Bf5 {[%emt 0:00:04]} 4. h4 {[%emt 0:00:05]} h6 {[%emt 0:00:59]} 5. g4 {[%emt 0:00:14]} Be4 {[%emt 0:00:05]} 6. f3 {[%emt 0:00:40]} Bh7 {[%emt 0:00:02]} 7. e6 {[%emt 0:02:45]} Qd6 {[%emt 0:00:06]} 8. exf7+ {[%emt 0:01:02]} Kxf7 {[%emt 0:00:06]} 9. Bd3 {[%emt 0:01:38]} Qg3+ {[%emt 0:20:58]} 10. Kf1 {[%emt 0:00:18]} Nd7 {[%emt 0:03:06]} 11. Bxh7 {[%emt 0:04:04]} Rxh7 {[%emt 0:01:51]} 12. Qd3 {[%emt 0:00:09]} Ngf6 {[%emt 0:01:46]} 13. Ne2 {[%emt 0:01:05]} Qc7 {[%emt 0:06:52]} 14. h5 {[%emt 0:06:10]} e5 {[%emt 0:07:39]} 15. Qg6+ {[%emt 0:00:08]} Kg8 {[%emt 0:00:59]} 16. Nbc3 {[%emt 0:04:50]} Re8 {[%emt 0:10:00]} 17. Be3 {[%emt 0:04:45]} c5 {[%emt 0:07:23]} 18. Bf2 {[%emt 0:00:33]} exd4 {[%emt 0:13:21]} 19. Nxd5 {[%emt 0:00:55]} Qc6 {[%emt 0:01:16]} 20. c4 {[%emt 0:03:25]} Nxd5 {[%emt 0:06:40]} 21. Qxe8 {[%emt 0:09:10]} N5f6 {[%emt 0:00:09]} 22. Qg6 {[%emt 0:00:14]} Qxf3 {[%emt 0:00:38]} 23. Rh4 {[%emt 0:06:15]} Ne5 {[%emt 0:01:57]} 24. Qf5 {[%emt 0:00:11]} Nfxg4 {[%emt 0:04:07]} 25. Qxf3 {[%emt 0:00:19]} Nxf3 {[%emt 0:00:01]} 26. Rh3 {[%emt 0:00:47]} Nd2+ {[%emt 0:01:20]} 27. Kg2 {[%emt 0:00:10]} Bd6 {[%emt 0:02:48]} 28. Bg3 {[%emt 0:09:46]} Ne3+ {[%emt 0:01:41]} 29. Kg1 {[%emt 0:06:02]} Bxg3 {[%emt 0:00:31]} 30. Rxg3 {[%emt 0:01:20]} Rh8 {[%emt 0:00:45]} 31. b3 {[%emt 0:17:05]} Kh7 {[%emt 0:00:12]} 32. Nf4 {[%emt 0:01:06]} Ne4 {[%emt 0:02:01]} 33. Rg6 {[%emt 0:01:37]} Nf6 {[%emt 0:01:23]} 34. Kh1 {[%emt 0:00:04]} Nf5 {[%emt 0:03:02]} 35. Rgg1 {[%emt 0:02:11]} Re8 {[%emt 0:00:35]} 36. Rge1 {[%emt 0:00:20]} Ne3 {[%emt 0:00:35]} 37. Ng2 {[%emt 0:02:18]} Nfg4 {[%emt 0:00:26]} 38. Nxe3 {[%emt 0:01:14]} Nxe3 {[%emt 0:00:10]} 39. Re2 {[%emt 0:00:26]} Re5 {[%emt 0:00:09]} 40. Rh2 {[%emt 0:00:10]} Ng4 {[%emt 0:01:48]} 41. Rh4 {[%emt 0:00:09]} Nf6 {[%emt 0:01:11]} 42. b4 {[%emt 0:02:47]} b6 {[%emt 0:00:20]} 43. bxc5 {[%emt 0:01:41]} bxc5 {[%emt 0:00:00]} 44. Kg2 {[%emt 0:00:09]} Nxh5 {[%emt 0:00:26]} 45. Rb1 {[%emt 0:00:28]} Nf6 {[%emt 0:00:37]} 46. Rb5 {[%emt 0:00:06]} Rg5+ {[%emt 0:02:26]} 47. Kf3 {[%emt 0:00:20]} Kg6 {[%emt 0:00:42]} 48. Ra5 {[%emt 0:00:19]} Rf5+ {[%emt 0:00:32]} 49. Rf4 {[%emt 0:00:15]} Re5 {[%emt 0:00:09]} 50. Rxd4 {[%emt 0:00:03]} Kf5 {[%emt 0:00:41]} 51. Rf4+ {[%emt 0:13:56]} 1/2-1/2

[Event "28th Bosnjaci Open 2024"]
[Site "Bosnjaci"]
[Date "2024.01.04"]
[Round "3.17"]
[White "Petricevic, Mateo"]
[Black "Pavic, Filip"]
[Result "0-1"]
[ECO "A56"]
[WhiteElo "2019"]
[BlackElo "2261"]
[Annotator "RC"]
[PlyCount "76"]
[EventDate "2024.01.02"]
[EventType "swiss"]
[EventCountry "CRO"]
[SourceTitle "playchess.com"]
[Source "ChessBase"]
[SourceQuality "1"]
[TimeControl "5400+30"]

1. d4 {[%emt 0:00:01]} Nf6 {[%emt 0:00:35]} 2. c4 {[%emt 0:00:53]} c5 {[%emt 0:00:39]} 3. d5 {[%emt 0:00:26]} e5 {[%emt 0:01:49]} 4. Nc3 {[%emt 0:01:41]} d6 {[%emt 0:00:27]} 5. e4 {[%emt 0:05:32]} Be7 {[%emt 0:00:53]} 6. Bd3 {[%emt 0:00:22]} O-O {[%emt 0:02:49]} 7. Nge2 {[%emt 0:02:35]} Nh5 {[%emt 0:03:32]} 8. h3 {[%emt 0:05:00]} Bg5 {[%emt 0:03:04]} 9. g4 {[%emt 0:04:56]} Nf4 {[%emt 0:15:10]} 10. Nxf4 {[%emt 0:00:14]} Bxf4 {[%emt 0:00:15]} 11. Qf3 {[%emt 0:10:17]} Bxc1 {[%emt 0:06:40]} 12. Rxc1 {[%emt 0:00:03]} Nd7 {[%emt 0:01:16]} 13. O-O {[%emt 0:15:43]} Re8 {[%emt 0:06:25]} 14. Qg3 {[%emt 0:06:09]} g5 {[%emt 0:14:20]} 15. Nd1 {[%emt 0:06:05]} Nf8 {[%emt 0:00:31]} 16. Ne3 {[%emt 0:00:28]} Ng6 {[%emt 0:00:41]} 17. Ng2 {[%emt 0:00:08]} Bd7 {[%emt 0:03:04]} 18. f3 {[%emt 0:02:15]} a6 {[%emt 0:03:43]} 19. Qe1 {[%emt 0:03:04]} b5 {[%emt 0:02:05]} 20. Qd2 {[%emt 0:02:37]} Rb8 {[%emt 0:00:50]} 21. Rb1 {[%emt 0:01:55]} Kg7 {[%emt 0:04:23]} 22. Kf2 {[%emt 0:09:32]} Rh8 {[%emt 0:00:48]} 23. Rh1 {[%emt 0:02:50]} h5 {[%emt 0:00:56]} 24. b3 {[%emt 0:03:16]} Qf6 {[%emt 0:05:18]} 25. Ke2 {[%emt 0:06:42]} Rh7 {[%emt 0:00:43]} 26. Rbg1 {[%emt 0:00:48]} Rbh8 {[%emt 0:01:09]} 27. Qe1 {[%emt 0:00:20]} hxg4 {[%emt 0:11:43]} 28. hxg4 {[%emt 0:00:22]} Nf4+ {[%emt 0:00:42]} 29. Nxf4 {[%emt 0:00:32]} exf4 {[%emt 0:01:12]} 30. Rxh7+ {[%emt 0:04:15]} Rxh7 {[%emt 0:00:02]} 31. Rg2 {[%emt 0:00:26]} Qd4 {[%emt 0:02:39]} 32. Qc1 {[%emt 0:02:11]} Rh1 {[%emt 0:03:20]} 33. Qd2 {[%emt 0:01:49]} Qa1 {[%emt 0:00:10]} 34. Rf2 {[%emt 0:01:49]} bxc4 {[%emt 0:00:06]} 35. bxc4 {[%emt 0:01:17]} Ba4 {[%emt 0:00:20]} 36. Bc2 {[%emt 0:01:17]} Bxc2 {[%emt 0:00:09]} 37. Qxc2 {[%emt 0:00:00]} Qe1+ {[%emt 0:00:12]} 38. Kd3 {[%emt 0:00:06]} Qe3# {[%emt 0:00:05]} 0-1

[Event "28th Bosnjaci Open 2024"]
[Site "Bosnjaci"]
[Date "2024.01.04"]
[Round "3.18"]
[White "Cvitan, Ena"]
[Black "Grgantov, Marin"]
[Result "1-0"]
[ECO "D02"]
[WhiteElo "2242"]
[BlackElo "1973"]
[Annotator "RC"]
[PlyCount "43"]
[EventDate "2024.01.02"]
[EventType "swiss"]
[EventCountry "CRO"]
[SourceTitle "playchess.com"]
[Source "ChessBase"]
[SourceQuality "1"]
[TimeControl "5400+30"]

1. d4 {[%emt 0:01:52]} Nf6 {[%emt 0:00:07]} 2. Nf3 {[%emt 0:00:13]} d5 {[%emt 0:00:07]} 3. Bf4 {[%emt 0:00:06]} c5 {[%emt 0:00:09]} 4. e3 {[%emt 0:00:08]} Nc6 {[%emt 0:00:10]} 5. Nbd2 {[%emt 0:00:21]} cxd4 {[%emt 0:01:49]} 6. exd4 {[%emt 0:00:16]} Bf5 {[%emt 0:00:09]} 7. Bb5 {[%emt 0:02:08]} Qb6 {[%emt 0:04:36]} 8. c4 {[%emt 0:00:08]} Bd7 {[%emt 0:11:03]} 9. O-O {[%emt 0:09:42]} e6 {[%emt 0:07:26]} 10. a4 {[%emt 0:09:29]} Nxd4 {[%emt 0:12:23]} 11. Bxd7+ {[%emt 0:04:02]} Nxd7 {[%emt 0:06:33]} 12. cxd5 {[%emt 0:03:29]} exd5 {[%emt 0:02:00]} 13. Nxd4 {[%emt 0:01:53]} Qxd4 {[%emt 0:00:08]} 14. Re1+ {[%emt 0:01:57]} Kd8 {[%emt 0:00:07]} 15. Qf3 {[%emt 0:10:42]} Rc8 {[%emt 0:31:44]} 16. Be3 {[%emt 0:07:48]} Qxb2 {[%emt 0:03:34]} 17. Qxd5 {[%emt 0:01:51]} b6 {[%emt 0:02:32]} 18. Nc4 {[%emt 0:05:50]} Qb3 {[%emt 0:00:30]} 19. Rad1 {[%emt 0:01:11]} Rc7 {[%emt 0:04:26]} 20. Qa8+ {[%emt 0:00:11]} Rc8 {[%emt 0:00:25]} 21. Qxa7 {[%emt 0:00:23]} Rc7 {[%emt 0:01:53]} 22. Qb8+ {[%emt 0:00:12]} 1-0

[Event "28th Bosnjaci Open 2024"]
[Site "Bosnjaci"]
[Date "2024.01.04"]
[Round "3.19"]
[White "Kukic, Lora"]
[Black "Bobanac, Miro"]
[Result "1/2-1/2"]
[ECO "B40"]
[WhiteElo "1945"]
[BlackElo "2238"]
[Annotator "RC"]
[PlyCount "119"]
[EventDate "2024.01.02"]
[EventType "swiss"]
[EventCountry "CRO"]
[SourceTitle "playchess.com"]
[Source "ChessBase"]
[SourceQuality "1"]
[TimeControl "5400+30"]

1. e4 {[%emt 0:00:04]} c5 {[%emt 0:00:52]} 2. Nf3 {[%emt 0:00:21]} e6 {[%emt 0:00:40]} 3. g3 {[%emt 0:01:12]} Nc6 {[%emt 0:02:29]} 4. Bg2 {[%emt 0:02:05]} Nf6 {[%emt 0:04:23]} 5. Qe2 {[%emt 0:01:09]} Qc7 {[%emt 0:01:05]} 6. h3 {[%emt 0:02:39]} d6 {[%emt 0:01:38]} 7. O-O {[%emt 0:07:46]} Be7 {[%emt 0:01:08]} 8. c3 {[%emt 0:01:28]} O-O {[%emt 0:01:38]} 9. d4 {[%emt 0:05:30]} e5 {[%emt 0:05:26]} 10. d5 {[%emt 0:08:44]} Nb8 {[%emt 0:01:21]} 11. a4 {[%emt 0:00:49]} Nbd7 {[%emt 0:06:20]} 12. Na3 {[%emt 0:22:37]} a6 {[%emt 0:00:31]} 13. Bd2 {[%emt 0:04:01]} Re8 {[%emt 0:01:30]} 14. g4 {[%emt 0:02:50]} g6 {[%emt 0:02:25]} 15. b4 {[%emt 0:02:42]} Bf8 {[%emt 0:06:31]} 16. Nh2 {[%emt 0:04:27]} Bg7 {[%emt 0:00:33]} 17. Bf3 {[%emt 0:03:26]} h6 {[%emt 0:02:17]} 18. h4 {[%emt 0:01:58]} Nh7 {[%emt 0:03:22]} 19. Kh1 {[%emt 0:04:48]} Qd8 {[%emt 0:03:47]} 20. Nc4 {[%emt 0:02:09]} Bf8 {[%emt 0:00:23]} 21. h5 {[%emt 0:04:16]} Qh4 {[%emt 0:03:07]} 22. Bg2 {[%emt 0:01:23]} gxh5 {[%emt 0:12:11]} 23. gxh5 {[%emt 0:00:48]} Ndf6 {[%emt 0:00:09]} 24. Bf3 {[%emt 0:02:57]} cxb4 {[%emt 0:03:42]} 25. cxb4 {[%emt 0:03:14]} Ng5 {[%emt 0:06:09]} 26. Rg1 {[%emt 0:00:43]} Kh8 {[%emt 0:00:10]} 27. Bxg5 {[%emt 0:03:20]} hxg5 {[%emt 0:00:16]} 28. Nb6 {[%emt 0:00:24]} Bh3 {[%emt 0:05:42]} 29. Nxa8 {[%emt 0:04:37]} Rxa8 {[%emt 0:00:17]} 30. Rg3 {[%emt 0:01:24]} Bh6 {[%emt 0:03:10]} 31. Kg1 {[%emt 0:00:13]} g4 {[%emt 0:05:00]} 32. Bxg4 {[%emt 0:00:16]} Bxg4 {[%emt 0:00:52]} 33. Nxg4 {[%emt 0:00:27]} Nxh5 {[%emt 0:02:49]} 34. Nxh6 {[%emt 0:01:29]} Nxg3 {[%emt 0:00:17]} 35. Nxf7+ {[%emt 0:00:57]} Kg7 {[%emt 0:00:57]} 36. fxg3 {[%emt 0:00:01]} Qxg3+ {[%emt 0:00:26]} 37. Qg2 {[%emt 0:00:01]} Qxg2+ {[%emt 0:00:17]} 38. Kxg2 {[%emt 0:00:02]} Kxf7 {[%emt 0:00:08]} 39. Rc1 {[%emt 0:00:11]} Kf6 {[%emt 0:01:50]} 40. Rc7 {[%emt 0:00:19]} Kg5 {[%emt 0:00:05]} 41. Kf3 {[%emt 0:00:19]} Rf8+ {[%emt 0:01:04]} 42. Ke3 {[%emt 0:00:05]} Rh8 {[%emt 0:00:05]} 43. Rg7+ {[%emt 0:01:32]} Kf6 {[%emt 0:00:01]} 44. Rxb7 {[%emt 0:00:14]} Rh3+ {[%emt 0:00:06]} 45. Kf2 {[%emt 0:00:58]} Kg5 {[%emt 0:01:12]} 46. Rb6 {[%emt 0:01:07]} Rb3 {[%emt 0:00:25]} 47. Rxd6 {[%emt 0:00:49]} Kf4 {[%emt 0:00:36]} 48. Rxa6 {[%emt 0:00:41]} Rxb4 {[%emt 0:00:43]} 49. d6 {[%emt 0:00:49]} Rd4 {[%emt 0:04:51]} 50. a5 {[%emt 0:00:17]} Kxe4 {[%emt 0:00:22]} 51. Rb6 {[%emt 0:00:22]} Kf5 {[%emt 0:01:23]} 52. a6 {[%emt 0:00:42]} Ke6 {[%emt 0:00:14]} 53. Rb8 {[%emt 0:00:38]} Ra4 {[%emt 0:00:26]} 54. Rb6 {[%emt 0:00:22]} Ra3 {[%emt 0:00:39]} 55. Ke2 {[%emt 0:00:08]} e4 {[%emt 0:00:16]} 56. Kd2 {[%emt 0:00:22]} Kd7 {[%emt 0:00:09]} 57. Ke2 {[%emt 0:00:48]} Ke6 {[%emt 0:00:08]} 58. Kd2 {[%emt 0:00:37]} Kd7 {[%emt 0:00:07]} 59. Ke2 {[%emt 0:00:37]} Ke6 {[%emt 0:00:06]} 60. Kd2 {[%emt 0:01:16]} 1/2-1/2

[Event "28th Bosnjaci Open 2024"]
[Site "Bosnjaci"]
[Date "2024.01.04"]
[Round "3.20"]
[White "Rosic, Slavko S"]
[Black "Zadravec, Marin"]
[Result "1-0"]
[ECO "B34"]
[WhiteElo "2231"]
[BlackElo "1915"]
[Annotator "RC"]
[PlyCount "93"]
[EventDate "2024.01.02"]
[EventType "swiss"]
[EventCountry "CRO"]
[SourceTitle "playchess.com"]
[Source "ChessBase"]
[SourceQuality "1"]
[TimeControl "5400+30"]

1. e4 {[%emt 0:00:02]} c5 {[%emt 0:00:07]} 2. Nf3 {[%emt 0:00:03]} Nc6 {[%emt 0:00:06]} 3. d4 {[%emt 0:00:10]} cxd4 {[%emt 0:00:07]} 4. Nxd4 {[%emt 0:00:01]} g6 {[%emt 0:00:14]} 5. Nc3 {[%emt 0:00:58]} Bg7 {[%emt 0:00:07]} 6. Be3 {[%emt 0:00:02]} Nf6 {[%emt 0:00:09]} 7. f3 {[%emt 0:00:48]} O-O {[%emt 0:00:17]} 8. Qd2 {[%emt 0:00:09]} d5 {[%emt 0:01:35]} 9. Nxc6 {[%emt 0:07:19]} bxc6 {[%emt 0:00:12]} 10. O-O-O {[%emt 0:03:03]} e6 {[%emt 0:01:56]} 11. e5 {[%emt 0:01:56]} Nd7 {[%emt 0:00:46]} 12. f4 {[%emt 0:00:24]} c5 {[%emt 0:00:58]} 13. Nxd5 {[%emt 0:00:20]} exd5 {[%emt 0:05:01]} 14. Qxd5 {[%emt 0:00:02]} Qb6 {[%emt 0:03:08]} 15. Rd3 {[%emt 0:00:23]} Rb8 {[%emt 0:01:17]} 16. Rb3 {[%emt 0:01:03]} Qe6 {[%emt 0:04:24]} 17. Bc4 {[%emt 0:02:12]} Qxd5 {[%emt 0:06:29]} 18. Bxd5 {[%emt 0:00:06]} Rxb3 {[%emt 0:00:14]} 19. Bxb3 {[%emt 0:01:51]} Re8 {[%emt 0:11:44]} 20. Ba4 {[%emt 0:01:10]} Bf8 {[%emt 0:09:39]} 21. Rd1 {[%emt 0:03:37]} Re7 {[%emt 0:03:25]} 22. Bb3 {[%emt 0:02:28]} Kg7 {[%emt 0:01:43]} 23. g4 {[%emt 0:02:13]} Nb6 {[%emt 0:05:27]} 24. Bxc5 {[%emt 0:01:58]} Rd7 {[%emt 0:00:34]} 25. Bd4 {[%emt 0:00:42]} Rxd4 {[%emt 0:02:25]} 26. Rxd4 {[%emt 0:00:09]} Bxg4 {[%emt 0:00:19]} 27. Kd2 {[%emt 0:00:31]} Bc5 {[%emt 0:06:26]} 28. Rd8 {[%emt 0:00:19]} Bg1 {[%emt 0:02:36]} 29. h4 {[%emt 0:00:52]} Bh2 {[%emt 0:01:18]} 30. Rd4 {[%emt 0:01:15]} Bg3 {[%emt 0:01:09]} 31. a4 {[%emt 0:00:20]} Bxh4 {[%emt 0:00:46]} 32. a5 {[%emt 0:02:42]} Nc8 {[%emt 0:03:13]} 33. Rc4 {[%emt 0:01:06]} Be6 {[%emt 0:04:00]} 34. Rc7 {[%emt 0:00:17]} Bxb3 {[%emt 0:01:16]} 35. cxb3 {[%emt 0:00:16]} Ne7 {[%emt 0:00:16]} 36. Rxa7 {[%emt 0:00:04]} Nd5 {[%emt 0:00:52]} 37. a6 {[%emt 0:00:19]} Bf2 {[%emt 0:02:09]} 38. Rb7 {[%emt 0:01:12]} Nxf4 {[%emt 0:00:30]} 39. a7 {[%emt 0:00:12]} Bxa7 {[%emt 0:00:27]} 40. Rxa7 {[%emt 0:00:02]} h5 {[%emt 0:00:08]} 41. b4 {[%emt 0:00:26]} h4 {[%emt 0:00:04]} 42. b5 {[%emt 0:00:02]} Nd5 {[%emt 0:00:32]} 43. e6 {[%emt 0:00:12]} Kf6 {[%emt 0:01:18]} 44. exf7 {[%emt 0:01:22]} Kg7 {[%emt 0:00:08]} 45. Rd7 {[%emt 0:00:20]} h3 {[%emt 0:00:46]} 46. Rxd5 {[%emt 0:00:31]} h2 {[%emt 0:00:50]} 47. Rd8 {[%emt 0:00:09]} 1-0

[Event "28th Bosnjaci Open 2024"]
[Site "Bosnjaci"]
[Date "2024.01.05"]
[Round "4.1"]
[White "Sajin, Mirko"]
[Black "Saric, Ante"]
[Result "1/2-1/2"]
[ECO "B22"]
[WhiteElo "2299"]
[BlackElo "2508"]
[Annotator "TA"]
[PlyCount "68"]
[EventDate "2024.01.02"]
[EventType "swiss"]
[EventCountry "CRO"]
[SourceTitle "playchess.com"]
[Source "ChessBase"]
[SourceQuality "1"]
[TimeControl "5400+30"]

{[%evp 19,68,1,4,4,0,0,0,0,0,-28,-10,-10,-9,-9,-6,-9,-9,-8,-8,-2,-3,-14,-14,-24,0,-11,0,0,0,0,0,0,0,0,0,0,0,0,0,-3,0,0,0,0,0,0,0,0,0,0,0]} 1. e4 {[%emt 0:00:02]} c5 {[%emt 0:00:15]} 2. c3 {[%emt 0:00:31]} d5 {[%emt 0:00:07]} 3. exd5 {[%emt 0:00:40]} Qxd5 {[%emt 0:00:08]} 4. d4 {[%emt 0:00:24]} e6 {[%emt 0:00:33]} 5. Nf3 {[%emt 0:00:56]} Nf6 {[%emt 0:00:10]} 6. Bd3 {[%emt 0:01:11]} Be7 {[%emt 0:01:04]} 7. O-O {[%emt 0:02:10]} O-O {[%emt 0:00:36]} 8. Be3 {[%emt 0:04:30]} cxd4 {[%emt 0:01:06]} 9. cxd4 {[%emt 0:02:15]} b6 {[%emt 0:00:14]} 10. Nc3 {[%emt 0:00:58]} Qd8 {[%emt 0:00:08]} 11. Qe2 {[%emt 0:03:50] B22: Sicilian: 2 c3.} Bb7 {[%emt 0:01:25]} 12. Rad1 {[%emt 0:06:44]} Nd5 {[%emt 0:02:50]} 13. Nxd5 {[%emt 0:03:21]} Bxd5 {[%emt 0:03:44] [#]} 14. b3 $146 {[%emt 0:02:35]} ({Predecessor:} 14. a3 Nc6 15. Ne5 Rc8 16. Rfe1 Bd6 17. Bc1 Qh4 18. g3 Qh3 19. Be4 Nxd4 20. Rxd4 Bxe5 {0-1 Seger,R (2390)-Roiz,M (2668) Bundesliga 1112 2011 (13.6)}) 14... Nd7 {[%emt 0:01:08]} (14... Nc6 {is more complex.} 15. Ne5 Nb4 16. Bb1 Rc8) 15. Ne5 {[%emt 0:03:49]} Nxe5 {[%emt 0:10:32]} 16. dxe5 {[%emt 0:00:07][%cal Od3e4]} Qc7 {[%emt 0:02:12]} 17. Bf4 {[%emt 0:13:44]} (17. Qh5 {is interesting.} g6 18. Qh6 Rfc8 19. Qf4) 17... a5 {[%emt 0:28:21]} 18. Be4 {[%emt 0:03:52]} Bxe4 {[%emt 0:06:47]} 19. Qxe4 {[%emt 0:00:07]} Rad8 {[%emt 0:01:23]} 20. Rc1 {[%emt 0:05:44]} Bc5 {[%emt 0:02:38]} 21. Rfd1 {[%emt 0:01:10] Prevents Rd5} Rxd1+ {[%emt 0:05:22]} (21... Ba3 $5 {[%cal Ra3c1]} 22. Rb1 (22. Rxc7 $2 {leads to mate.} Rxd1+) 22... Rc8 $11) 22. Rxd1 {[%emt 0:00:09] The position is equal.} Rd8 {[%emt 0:00:43]} 23. Rxd8+ {[%emt 0:02:14]} Qxd8 $11 {[%emt 0:00:03][%mdl 4096] Endgame KQB-KQB} 24. g3 {[%emt 0:03:37]} h6 {[%emt 0:03:09]} 25. Be3 {[%emt 0:01:21]} Bxe3 {[%emt 0:02:04]} 26. Qxe3 {[%emt 0:00:09] KQ-KQ} Qd1+ {[%emt 0:00:05]} 27. Kg2 {[%emt 0:00:03]} Qd5+ {[%emt 0:00:04]} 28. Kg1 {[%emt 0:04:43]} b5 {[%emt 0:00:29][%cal Bb6b5,Bb5b4][%mdl 32]} 29. Qc3 {[%emt 0:06:53]} b4 {[%emt 0:02:13]} 30. Qc8+ {[%emt 0:00:59]} Kh7 {[%emt 0:00:09] [#] Hoping for ...Qd2.} 31. Qc7 {[%emt 0:02:08]} Qd1+ {[%emt 0:09:59]} 32. Kg2 {[%emt 0:00:08]} Qd5+ {[%emt 0:01:29]} 33. Kg1 {[%emt 0:00:11]} Qd1+ {[%emt 0:05:22]} 34. Kg2 {[%emt 0:00:07]} Qd5+ {[%emt 0:00:20] Not much happened in this game.   Weighted Error Value: White=0.03 (flawless) /Black=0.03 (flawless)} 1/2-1/2

[Event "28th Bosnjaci Open 2024"]
[Site "Bosnjaci"]
[Date "2024.01.05"]
[Round "4.2"]
[White "Milovic, Jovan"]
[Black "Fercec, Nenad"]
[Result "1/2-1/2"]
[ECO "A45"]
[WhiteElo "2223"]
[BlackElo "2410"]
[Annotator "ChessBase"]
[PlyCount "89"]
[EventDate "2024.01.02"]
[EventType "swiss"]
[EventCountry "CRO"]
[SourceTitle "playchess.com"]
[Source "ChessBase"]
[SourceQuality "1"]
[TimeControl "5400+30"]

1. d4 {[%emt 0:00:51]} Nf6 {[%emt 0:00:09]} 2. Bg5 {[%emt 0:02:31]} Ne4 {[%emt 0:00:23]} 3. Bf4 {[%emt 0:00:33]} c5 {[%emt 0:00:10]} 4. d5 {[%emt 0:00:31]} d6 {[%emt 0:02:09]} 5. f3 {[%emt 0:04:02]} Nf6 {[%emt 0:00:29]} 6. e4 {[%emt 0:00:35]} e6 {[%emt 0:01:43]} 7. Bb5+ {[%emt 0:04:00]} Bd7 {[%emt 0:00:20]} 8. Bxd7+ {[%emt 0:01:33]} Qxd7 {[%emt 0:00:10]} 9. Nc3 {[%emt 0:00:29]} Be7 {[%emt 0:03:43]} 10. Nh3 {[%emt 0:00:48]} e5 {[%emt 0:00:51]} 11. Be3 {[%emt 0:01:19]} b5 {[%emt 0:00:05]} 12. a4 {[%emt 0:01:41]} b4 {[%emt 0:02:29]} 13. Nb1 {[%emt 0:00:55]} a5 {[%emt 0:00:04]} 14. Nd2 {[%emt 0:00:15]} Qb7 {[%emt 0:00:13]} 15. Nc4 {[%emt 0:03:57]} Nbd7 {[%emt 0:00:29]} 16. Nf2 {[%emt 0:05:28]} Nb6 {[%emt 0:01:49]} 17. Nxb6 {[%emt 0:00:48]} Qxb6 {[%emt 0:00:08]} 18. b3 {[%emt 0:00:51]} Qc7 {[%emt 0:06:03]} 19. O-O {[%emt 0:04:20]} O-O {[%emt 0:02:50]} 20. Rc1 {[%emt 0:01:00]} Nd7 {[%emt 0:04:29]} 21. c4 {[%emt 0:02:32]} Qd8 {[%emt 0:09:18]} 22. Qd2 {[%emt 0:02:41]} h6 {[%emt 0:02:32]} 23. g3 {[%emt 0:12:17]} Bg5 {[%emt 0:00:27]} 24. f4 {[%emt 0:00:36]} exf4 {[%emt 0:00:28]} 25. gxf4 {[%emt 0:00:03]} Bh4 {[%emt 0:00:38]} 26. Nd3 {[%emt 0:00:42]} Re8 {[%emt 0:02:09]} 27. Qg2 {[%emt 0:04:02]} f5 {[%emt 0:07:20]} 28. e5 {[%emt 0:00:24]} dxe5 {[%emt 0:00:07]} 29. fxe5 {[%emt 0:08:49]} Nxe5 {[%emt 0:00:07]} 30. Nxe5 {[%emt 0:04:59]} Rxe5 {[%emt 0:00:07]} 31. Bxc5 {[%emt 0:00:25]} Qc7 {[%emt 0:00:04]} 32. Bd4 {[%emt 0:06:14]} Re4 {[%emt 0:00:19]} 33. d6 {[%emt 0:00:14]} Qd7 {[%emt 0:00:03]} 34. Rxf5 {[%emt 0:00:22]} Rae8 {[%emt 0:00:04]} 35. Qxg7+ {[%emt 0:07:07]} Qxg7+ {[%emt 0:00:25]} 36. Bxg7 {[%emt 0:00:03]} Kxg7 {[%emt 0:06:46]} 37. Rxa5 {[%emt 0:02:21]} Rd4 {[%emt 0:04:14]} 38. Rd5 {[%emt 0:04:29]} Rxd5 {[%emt 0:00:29]} 39. cxd5 {[%emt 0:00:09]} Rd8 {[%emt 0:03:51]} 40. Rc4 {[%emt 0:02:07]} Bf6 {[%emt 0:02:32]} 41. Rxb4 {[%emt 0:00:34]} Rxd6 {[%emt 0:00:05]} 42. Rb5 {[%emt 0:00:24]} Bd4+ {[%emt 0:00:06]} 43. Kg2 {[%emt 0:00:30]} Kf6 {[%emt 0:00:03]} 44. Kf3 {[%emt 0:01:51]} Ke5 {[%emt 0:03:29]} 45. a5 {[%emt 0:00:09]} 1/2-1/2

[Event "28th Bosnjaci Open 2024"]
[Site "Bosnjaci"]
[Date "2024.01.05"]
[Round "4.3"]
[White "Kovacevic, Blazimir"]
[Black "Plenkovic, Zdenko"]
[Result "0-1"]
[ECO "D04"]
[WhiteElo "2381"]
[BlackElo "2335"]
[Annotator "RC"]
[PlyCount "74"]
[EventDate "2024.01.02"]
[EventType "swiss"]
[EventCountry "CRO"]
[SourceTitle "playchess.com"]
[Source "ChessBase"]
[SourceQuality "1"]
[TimeControl "5400+30"]

1. d4 {[%emt 0:00:04]} Nf6 {[%emt 0:01:14]} 2. Nf3 {[%emt 0:00:10]} g6 {[%emt 0:00:04]} 3. e3 {[%emt 0:00:21]} Bg7 {[%emt 0:00:06]} 4. Be2 {[%emt 0:00:04]} O-O {[%emt 0:00:20]} 5. O-O {[%emt 0:00:04]} d5 {[%emt 0:01:52]} 6. b4 {[%emt 0:00:18]} Nc6 {[%emt 0:00:43]} 7. a3 {[%emt 0:03:50]} Ne4 {[%emt 0:10:03]} 8. Bb2 {[%emt 0:01:17]} Nd6 {[%emt 0:03:16]} 9. Nbd2 {[%emt 0:05:40]} Bg4 {[%emt 0:20:32]} 10. h3 {[%emt 0:04:35]} Bxf3 {[%emt 0:01:56]} 11. Bxf3 {[%emt 0:00:06]} e6 {[%emt 0:00:06]} 12. c4 {[%emt 0:01:50]} Nf5 {[%emt 0:02:03]} 13. b5 {[%emt 0:03:17]} Nce7 {[%emt 0:00:27]} 14. a4 {[%emt 0:02:53]} Re8 {[%emt 0:00:47]} 15. Qb3 {[%emt 0:02:21]} a6 {[%emt 0:05:15]} 16. cxd5 {[%emt 0:08:09]} exd5 {[%emt 0:00:18]} 17. Ba3 {[%emt 0:00:35]} axb5 {[%emt 0:01:48]} 18. axb5 {[%emt 0:00:10]} Qd7 {[%emt 0:03:20]} 19. Bc5 {[%emt 0:10:44]} h5 {[%emt 0:04:14]} 20. Rfc1 {[%emt 0:10:28]} b6 {[%emt 0:02:53]} 21. Bxe7 {[%emt 0:01:58]} Nxe7 {[%emt 0:00:04]} 22. Ra4 {[%emt 0:04:27]} Bh6 {[%emt 0:01:56]} 23. Rca1 {[%emt 0:02:08]} Rxa4 {[%emt 0:06:25]} 24. Rxa4 {[%emt 0:00:05]} Rd8 {[%emt 0:00:18]} 25. Nb1 {[%emt 0:03:45]} Qe6 {[%emt 0:02:46]} 26. Qc2 {[%emt 0:10:55]} Nf5 {[%emt 0:04:44]} 27. Nc3 {[%emt 0:02:58]} Bxe3 {[%emt 0:07:22]} 28. Bxd5 {[%emt 0:01:13]} Rxd5 {[%emt 0:00:57]} 29. Nxd5 {[%emt 0:00:07]} Bxd4 {[%emt 0:00:30]} 30. Ne3 {[%emt 0:15:22]} Nxe3 {[%emt 0:01:28]} 31. Qxc7 {[%emt 0:01:47]} Qe4 {[%emt 0:02:54]} 32. Qc6 {[%emt 0:02:32]} Qb1+ {[%emt 0:00:17]} 33. Kh2 {[%emt 0:00:03]} Nf1+ {[%emt 0:00:28]} 34. Kg1 {[%emt 0:00:03]} Ng3+ {[%emt 0:00:10]} 35. Kh2 {[%emt 0:00:13]} h4 {[%emt 0:02:08]} 36. Qe8+ {[%emt 0:02:28]} Kg7 {[%emt 0:00:16]} 37. Rxd4 {[%emt 0:00:04]} Qh1# {[%emt 0:00:06]} 0-1